Cogmind - Beta 15 @@@ ROGUE MODE // 2025.10.20 @ 17:24:41 Player: Big Jerry Result: Destroyed by P-60 Hacker with Shock Rifle Performance ------------- Evolutions (4) 2000 Regions Visited (4) 800 Robots Destroyed (53) 265 Value Destroyed (1422) 1422 Prototype IDs (7) 140 Alien Tech Used (0) 0 Bonus (800) 800 TOTAL SCORE: 5427 Bonus ------- Registered with UFD 300 Met Optimus in HQ 500 Cogmind --------- Core Integrity 0/850 Matter 96/300 Energy 90/100 System Corruption 5% Temperature Cool (0) Movement Core (50) Location -6/Factory Parts ------- > --- POWER (1) -------- (None) > --- PROPULSION (5) --- (None) > --- UTILITY (6) ------ Thermal Shield > --- WEAPON (3) ------- (None) > --- INVENTORY (5) ---- Precision Shock Rifle Barrage Gun Heavy Battle Rifle Heavy Rocket Launcher Peak State ------------ > --- POWER ------------ Light Deuterium Engine > --- PROPULSION ------- Improved Hover Unit Makeshift Hover Unit Makeshift Hover Unit Makeshift Hover Unit > --- UTILITY ---------- Scrap Suit Improved Sensor Array Advanced Signal Interpreter Reaction Control System Force Field > --- WEAPON ----------- Heavy Battle Rifle Slug Cannon Long-range Missile Launcher > --- INVENTORY -------- Advanced Weight Redist. System Precision Shock Rifle Barrage Gun Heavy Flak Cannon Heavy Rocket Launcher [Rating: 59] Favorites ----------- Power Ion Engine Engine Ion Engine Propulsion Light Treads Treads Light Treads Hover Unit Makeshift Hover Unit Flight Unit Cesium-ion Thruster Utility High-capacity Storage Unit Device Heat Sink Storage High-capacity Storage Unit Processor Advanced Signal Interpreter Protection Propulsion Shielding Weapon Grenade Launcher Energy Gun Subdweller Laser Energy Cannon Beam Cannon Ballistic Gun Assault Rifle Ballistic Cannon Heavy Flak Cannon Launcher Grenade Launcher Build | -11 -10 -10 -9 -6 ------- Run | Yrd Mat Sub Scr Fac Slots Evolved 8 | . . . . 8 Power . | . . . . . Propulsion 3 | . . . . 3 Utility 4 | . . . . 4 Weapon 1 | . . . . 1 Parts Attached 45 | 7 7 2 3 26 Power 5 | 1 1 . . 3 Engine 5 | 1 1 . . 3 Core . | . . . . . Reactor . | . . . . . Propulsion 12 | 2 1 . 3 6 Treads 6 | 2 1 . 3 . Leg . | . . . . . Wheel . | . . . . . Hover 5 | . . . . 5 Flight 1 | . . . . 1 Utility 13 | 1 3 . . 9 Device 7 | . 1 . . 6 Storage 2 | 1 1 . . . Processor 3 | . . . . 3 Hackware . | . . . . . Protection 1 | . 1 . . . Artifact . | . . . . . Weapon 15 | 3 2 2 . 8 Energy Gun 3 | 1 . 1 . 1 Energy Cannon 2 | . 2 . . . Ballistic Gun 4 | 2 . . . 2 Ballistic Cannon 3 | . . . . 3 Launcher 3 | . . 1 . 2 Special Weapon . | . . . . . Impact Weapon . | . . . . . Slashing Weapon . | . . . . . Piercing Weapon . | . . . . . Special Melee Weapon . | . . . . . Unidentified Prototypes 1 | . . . . 1 Parts Lost 14 | . . . . 14 Power 1 | . . . . 1 Propulsion 6 | . . . . 6 Utility 4 | . . . . 4 Weapon 3 | . . . . 3 Highest Loss Streak 12 | . . . . 12 To Critical Strikes 1 | . . . . 1 Average Backups 11 | 1 5 9 14 5 Power 1 | . 1 1 2 . Propulsion 3 | 1 2 3 4 . Utility . | . . . 1 . Weapon 5 | . 1 4 6 4 Tool/Special . | . . . . . Unused Backups 4 | . . . . 4 Power . | . . . . . Propulsion 3 | . . . . 3 Utility 1 | . . . . 1 Weapon . | . . . . . Tool/Special . | . . . . . Average Slot Usage (%) 96 | . 98 100 100 68 Engine 13 | . 14 14 14 5 Treads 24 | . 28 28 28 . Hover 2 | . . . . 19 Device 12 | . 3 14 14 15 Storage 13 | . 19 14 14 . Processor 1 | . . . . 9 Energy Gun 10 | . . 8 14 4 Energy Cannon 4 | . 23 9 . . Ballistic Gun 1 | . 4 . . 4 Launcher 9 | . . 9 14 1 Peak Build Rating 59 | 6 7 10 20 59 Average Rating 14 | 4 6 8 12 46 On Entrance 8 | . 6 7 10 20 Naked Turns 44 | . . . . 44 Heaviest Build 54 | 12 54 53 53 40 Greatest Support 56 | 40 40 40 56 48 Greatest Overweight (x) 2 | . 1 1 1 2 Average Overweight (x) . | . . 1 . . Largest Inventory Capacity 20 | 8 20 20 20 20 Average Capacity 18 | 6 19 20 20 5 Most Carried 20 | 3 7 12 20 19 Average Carried 11 | 1 5 9 15 4 Final Capacity 20 | 8 20 20 20 5 Final Carried 20 | 3 6 12 20 4 Class Distribution -------------------- 90% | Mutant 6% | Derelict-Skirmisher Dominant Class ---------------- Mutant | -10/Materials Mutant | -10/Subcaves Mutant | -9/Scraptown Derelict-Skirmisher | -6/Factory Resources | -11 -10 -10 -9 -6 ----------- Run | Yrd Mat Sub Scr Fac Matter Collected 1170 | 160 194 100 30 686 Remotely . | . . . . . Salvage Created 1568 | . 413 160 . 995 Parts 74 | . 26 9 . 39 Haulers Intercepted 3 | . 1 . . 2 Recyclers Shooed . | . . . . . Parts Field Recycled . | . . . . . Retrieved Matter . | . . . . . Parts Self-Destructed 4 | . . 4 . . Prevented . | . . . . . Kills | -11 -10 -10 -9 -6 ------- Run | Yrd Mat Sub Scr Fac Combat Hostiles Destroyed 30 | . 12 5 . 13 Guns 6 | . . 1 . 5 Cannons 16 | . 11 2 . 3 AOE 7 | . . 2 . 5 Classes Destroyed 12 | . 5 1 . 6 Worker 7 | . 1 . . 6 Builder 6 | . . . . 6 Hauler 3 | . 1 . . 2 Recycler 2 | . . . . 2 Operator 1 | . . . . 1 Watcher 4 | . 1 . . 3 Swarmer 9 | . 6 . . 3 Grunt 15 | . 6 2 . 7 Brawler 1 | . . . . 1 Sentry 1 | . . . . 1 Programmer 1 | . . . . 1 Subdweller 3 | . . 3 . . Best Kill Streak 14 | . 3 2 . 14 Combat Bots Only 7 | . 3 2 . 7 Max Kills in Single Turn 4 | . 2 1 . 4 Gunslinging . | . . . . . Exploded 2 | . . 1 . 2 Melee . | . . . . . Uniques/NPCs Destroyed . | . . . . . Combat | -11 -10 -10 -9 -6 -------- Run | Yrd Mat Sub Scr Fac Hostile Shots Fired 280 | . 31 11 . 238 Missed 101 | . 7 6 . 88 Hits 179 | . 24 5 . 150 Melee 1 | . . . . 1 Projectile 178 | . 24 5 . 149 AOE 1 | . . . . 1 Critical Strikes 5 | . 1 . . 4 Damage Taken 2621 | . 264 113 . 2244 Core 892 | . 33 . . 859 Absorbed by Shields 80 | . . . . 80 Redirected to Shielding 9 | . 9 . . . Regen/Repaired (Parts) 70 | . 47 . . 23 Core Remaining (%) 93 | 100 . . 86 . Volleys Fired 86 | . 22 12 . 52 Largest 3 | . 2 2 . 3 Hottest 159 | . 120 90 . 159 Shots Fired 201 | . 44 21 . 136 Gun 81 | . 2 6 . 73 Cannon 93 | . 42 5 . 46 Launcher 27 | . . 10 . 17 Special . | . . . . . Kinetic 81 | . 2 . . 79 Thermal 66 | . 42 11 . 13 Explosive 27 | . . 10 . 17 Electromagnetic 27 | . . . . 27 Robot Hit Streak 16 | . 6 10 . 16 Robot Miss Streak 9 | . 3 1 . 9 Penetration Max . | . . . . . Secondary Targets . | . . . . . Shots Hit Robots 104 | . 25 14 . 65 Core Hits 104 | . 16 10 . 78 Critical Kills 2 | . 1 . . 1 Critical Parts Destroyed 2 | . . 1 . 1 Critical Strikes 4 | . 1 1 . 2 Meltdown 1 | . 1 . . . Destroy 3 | . . 1 . 2 Melee Attacks . | . . . . . Impact . | . . . . . Slashing . | . . . . . Piercing . | . . . . . Sneak Attacks . | . . . . . Combat Hostiles . | . . . . . Follow-up Attacks . | . . . . . Damage Inflicted 5237 | 3 456 566 . 4212 Guns 1022 | . 21 90 . 911 Cannons 1067 | . 435 70 . 562 Explosions 3128 | . . 406 . 2722 Melee . | . . . . . Ramming 20 | 3 . . . 17 Kinetic 914 | . 21 . . 893 Thermal 1310 | . 435 160 . 715 Explosive 2572 | . . 406 . 2166 Electromagnetic 421 | . . . . 421 Impact . | . . . . . Slashing . | . . . . . Piercing . | . . . . . Highest Corruption 4 | . . . . 4 Average Corruption 1 | . . . . 1 Corruption Purged . | . . . . . Corruption Blocked . | . . . . . Effects 7 | . . . . 7 Message Errors 2 | . . . . 2 Matter Fused 2 | . . . . 2 Heat Flow Errors 1 | . . . . 1 Parts Rejected 1 | . . . . 1 Weapon Failures 1 | . . . . 1 Overload Shots . | . . . . . Overflow Damage 186 | . . 5 . 181 Projectiles 3 | . . . . 3 Explosions 183 | . . 5 . 178 Melee . | . . . . . Knockbacks 9 | . . . . 9 Impact . | . . . . . Kinetic 8 | . . . . 8 Secondary 1 | . . . . 1 Self-Inflicted Damage 172 | . . 26 . 146 Shots 4 | . . 1 . 3 Rammed 3 | 1 . . . 2 Targets Rammed 3 | 1 . . . 2 Kicked . | . . . . . Crushed . | . . . . . Highest Temperature 309 | . 309 . . 306 Average Temperature 91 | . 114 . . 78 Received Heat Transfer 449 | . 126 21 . 302 Siege Activations . | . . . . . Martial Activations . | . . . . . Shielding Activations . | . . . . . Robots Disrupted . | . . . . . Combat Hostiles . | . . . . . Robots Corrupted . | . . . . . Combat Hostiles . | . . . . . Parts Fried 1 | . . . . 1 Impact Corruptions . | . . . . . Robots Melted 1 | . 1 . . . Combat Hostiles 1 | . 1 . . . Parts Melted 6 | . 6 . . . Heat Transferred 1798 | . 925 248 . 625 Parts Sabotaged 2 | . . . . 2 Parts Stolen . | . . . . . Parts Stripped . | . . . . . Power Chain Reactions 1 | . . . . 1 Alert | -11 -10 -10 -9 -6 ------- Run | Yrd Mat Sub Scr Fac Maximum Alert Level 1 | . . . . 1 Low Security (%) 90 | 100 100 . . 76 Level 1 9 | . . . . 23 Level 2 . | . . . . . Level 3 . | . . . . . Level 4 . | . . . . . Level 5 . | . . . . . High Security . | . . . . . Max Security . | . . . . . Peak Influence 306 | . 141 . . 306 Initial . | . . . . . Average 87 | . 57 . . 136 Influence Increases 1118 | . 358 50 . 710 Destroy 0b10 Robot/C 540 | . 240 40 . 260 Destroy 0b10 Robot/NC 115 | . 15 . . 100 Destroy Leader 114 | . 54 10 . 50 Successful Hack 48 | . 17 . . 31 Disable Machine 195 | . 30 . . 165 Destroy Structure 106 | . 2 . . 104 Influence Decreases 856 | . 281 127 . 448 Entered New Map 37 | . . 37 . . Time Decay 679 | . 281 90 . 308 Lost Part 140 | . . . . 140 Squads Dispatched 9 | . 2 . . 7 Investigation 4 | . 2 . . 2 Extermination 2 | . . . . 2 Reinforcement 2 | . . . . 2 Assault . | . . . . . Garrison 1 | . . . . 1 Intercept . | . . . . . Searches Triggered . | . . . . . Construction Impeded 1 | . . . . 1 Haulers Reinforced . | . . . . . Active Scanning Responses . | . . . . . Cargo Convoy Interrupts 1 | . . . . 1 Stealth | -11 -10 -10 -9 -6 --------- Run | Yrd Mat Sub Scr Fac Distress Signals 1 | . . . . 1 Communications Jammed . | . . . . . Distress Signals . | . . . . . Times Spotted 53 | . 13 6 . 34 Peak Tracking Total 15 | . 3 2 . 15 Tactical Retreats . | . . . . . Traps | -11 -10 -10 -9 -6 ------- Run | Yrd Mat Sub Scr Fac Traps Triggered 2 | . 1 . . 1 Indirectly . | . . . . . Trap Hack Attempts . | . . . . . Triggered . | . . . . . Disarmed . | . . . . . Reprogrammed . | . . . . . Reused . | . . . . . Traps Extracted . | . . . . . Installed . | . . . . . Triggered . | . . . . . Machines | -11 -10 -10 -9 -6 ---------- Run | Yrd Mat Sub Scr Fac Machines Disabled 13 | . 2 . . 11 Max in Single Turn 6 | . 1 . . 6 Machines Repaired . | . . . . . Machines Dismantled . | . . . . . Machines Sabotaged . | . . . . . Overloaded Fab Kills . | . . . . . Hacking | -11 -10 -10 -9 -6 --------- Run | Yrd Mat Sub Scr Fac Machines Accessed 18 | . 3 2 9 4 Terminals 5 | . 2 . . 3 Fabricators . | . . . . . Repair Stations 1 | . 1 . . . Recycling Units . | . . . . . Scanalyzers 1 | . . . . 1 Garrison Access . | . . . . . Total Hacks 56 | . 7 3 34 12 Successful 47 | . 5 3 34 5 Failed 9 | . 2 . . 7 Catastrophic 3 | . 1 . . 2 Database Lockouts . | . . . . . Manual . | . . . . . Terminals 12 | . 4 . . 8 Fabricators . | . . . . . Repair Stations 3 | . 3 . . . Recycling Units . | . . . . . Scanalyzers 4 | . . . . 4 Garrison Access . | . . . . . Terminal Hacks 42 | . 2 3 34 3 Record 34 | . . 1 33 . Open Door 1 | . . 1 . . Open DSF 1 | . . . . 1 Locate Traps 1 | . . . . 1 Reinforcement Status 1 | . . . . 1 Hauler Manifests 1 | . 1 . . . Registered Components 1 | . 1 . . . Proto ID Catalog 1 | . . . 1 . Release Object 1 | . . 1 . . Fabricator Hacks . | . . . . . Repair Station Hacks 3 | . 3 . . . Scan Component 2 | . 2 . . . Repair 1 | . 1 . . . Recycling Unit Hacks . | . . . . . Scanalyzer 2 | . . . . 2 Insert Component 1 | . . . . 1 Analyze 1 | . . . . 1 Garrison Access Hacks . | . . . . . Unauthorized Hacks . | . . . . . Terminals . | . . . . . Fabricators . | . . . . . Repair Stations . | . . . . . Recycling Units . | . . . . . Scanalyzers . | . . . . . Garrison Access . | . . . . . Data Cores Recovered . | . . . . . Used . | . . . . . Hacking Detections 5 | . 2 . . 3 Full Trace Events 4 | . 2 . . 2 Feedback Events . | . . . . . Feedback Blocked . | . . . . . Robot Schematics Acquired . | . . . . . Robots Built . | . . . . . Authchips . | . . . . . Time . | . . . . . Total Robot Build Rating . | . . . . . Part Schematics Acquired 1 | . . . . 1 Parts Built . | . . . . . Authchips . | . . . . . Time . | . . . . . Total Part Build Rating . | . . . . . Parts Repaired 1 | . 1 . . . Time 26 | . 26 . . . Parts Recycled . | . . . . . Recycled Matter . | . . . . . Retrieved Matter . | . . . . . Retrieved Components . | . . . . . Parts Scanalyzed 1 | . . . . 1 Part Schematics Acquired 1 | . . . . 1 Parts Damaged . | . . . . . Bothacking | -11 -10 -10 -9 -6 ------------ Run | Yrd Mat Sub Scr Fac Used RIF Installer . | . . . . . Robots Hacked . | . . . . . Non-combat . | . . . . . Combat . | . . . . . Robot Hacks Applied . | . . . . . Relay Couplers Released . | . . . . . Fabnet Peak Effective % . | . . . . . Robots Rewired . | . . . . . Allies Hacked . | . . . . . Hacks Repelled . | . . . . . Allies | -11 -10 -10 -9 -6 -------- Run | Yrd Mat Sub Scr Fac Total Allies . | . . . . . Largest Group . | . . . . . Highest-Rated Group . | . . . . . Highest-Rated Ally . | . . . . . Total Orders . | . . . . . Ally Attacks . | . . . . . Total Damage . | . . . . . Kills . | . . . . . Allies Corrupted . | . . . . . Allies Melted . | . . . . . Intel | -11 -10 -10 -9 -6 ------- Run | Yrd Mat Sub Scr Fac Active Infowar (turns) 564 | . . . . 564 Optics 361 | . . . . 361 Sensors 203 | . . . . 203 Robot Analysis Total . | . . . . . Derelict Logs Recovered 3 | . . 1 2 . Drone Launches . | . . . . . Drone Recoveries . | . . . . . Exploration | -11 -10 -10 -9 -6 ------------- Run | Yrd Mat Sub Scr Fac Turns Passed 6539 | 64 978 865 3927 705 Spaces Moved 3169 | 35 380 343 1644 767 Core 104 | 5 . . . 99 Treads 2397 | 30 380 343 1644 . Legs . | . . . . . Wheels . | . . . . . Hover 649 | . . . . 649 Flight 19 | . . . . 19 Fastest Speed 35 | 50 160 240 160 35 Average Speed 193 | 144 229 240 237 61 Slowest Speed 245 | 160 240 240 245 210 Overloaded Moves . | . . . . . Propulsion Burnouts . | . . . . . Robots Hopped 1 | . . . . 1 Potential Cave-ins . | . . . . . Cave-ins Triggered . | . . . . . Exploration Rate (%) 38 | 3 51 21 93 23 Regions Visited 4 Branch Regions 2 Pre-discovered Areas 3 | . . 1 2 . Known Exits Taken . | . . . . . Unknown Exits Taken 4 | 1 1 1 1 . Scrap Searched 9 | . . 4 5 . Spaces Dug 4 | . . . . 4 Terrain Destroyed 153 | . . 43 . 110 Melee . | . . . . . Projectile 8 | . . . . 8 AOE 145 | . . 43 . 102 Terrain Rammed . | . . . . . Walls Destroyed . | . . . . . Machines Disabled . | . . . . . Actions | -11 -10 -10 -9 -6 --------- Run | Yrd Mat Sub Scr Fac Total 3395 | 45 438 365 1658 889 Wait 45 | . 26 3 . 16 Move 3163 | 34 379 342 1643 765 Hop 1 | . . . . 1 Pick Up 22 | 3 2 6 7 4 Fast Attach 18 | 6 2 . . 10 Attach 8 | . . . . 8 Detach 1 | . . . . 1 Swap 25 | 1 6 2 5 11 Drop 23 | . 1 . 3 19 Fire 86 | . 22 12 . 52 Melee . | . . . . . Ram 2 | . . . . 2 Kick . | . . . . . Crush 1 | 1 . . . . Escape Stasis . | . . . . . Rewire . | . . . . . Trap . | . . . . . Miscellaneous . | . . . . . Route ------- -11/Scrapyard -10/Materials (discovered 3 exits: [*Mat] / [*Min] / *Sub) -10/Subcaves (discovered 2 exits: [*Mat] / *Scr) -9/Scraptown (discovered 2 exits: *Fac x2) -6/Factory History --------- Turn | Location | Event 7 | -11/Scrapyard | Discovered new exit (range 14) 65 | -11/Scrapyard | Entered Materials 236 | -10/Materials | Discovered new exit (range 14) 314 | -10/Materials | Build established: Mutant 422 | -10/Materials | Discovered new exit (range 16) 876 | -10/Materials | Repaired Beam Cannon 885 | -10/Materials | Discovered new exit (range 9) 1043 | -10/Materials | Entered Subcaves 1044 | -10/Subcaves | Approached by a straggling Scientist 1046 | -10/Subcaves | Shifting Twisted Machinery released Sub. Monowheel 1075 | -10/Subcaves | Discovered new exit (range 11) 1088 | -10/Subcaves | Learned location of Zion (-6) 1088 | -10/Subcaves | Met a Zionite searching for "candidates" 1229 | -10/Subcaves | Shifting Twisted Machinery released Sub. Power Source 1314 | -10/Subcaves | Shifting Twisted Machinery released Battle Cannon 1321 | -10/Subcaves | Shifting Twisted Machinery released Flamer 1324 | -10/Subcaves | Disturbed a concealed Subdweller 1738 | -10/Subcaves | Learned 2 Materials zone layouts 1872 | -10/Subcaves | Scientist uncovered a shortcut to Scraptown 1908 | -10/Subcaves | Entered Scraptown 2444 | -9/Scraptown | Visited Science Testing Area 2487 | -9/Scraptown | Visited Shadow of the Wyrm 2540 | -9/Scraptown | Visited Cyclists 2626 | -9/Scraptown | Visited Assassins FH 3113 | -9/Scraptown | Visited Awakened 3185 | -9/Scraptown | Heard Great Nut preacher, LISTEN AND RECITE! 3226 | -9/Scraptown | Scanned Subdweller tech in exchange for log data 3233 | -9/Scraptown | Learned location of Extension (-5) 3257 | -9/Scraptown | Discovered new exit (range 13) 3521 | -9/Scraptown | Visited UFD Registry 3521 | -9/Scraptown | Registered with UFD as "Nukedome" 3567 | -9/Scraptown | Visited Bundlers 3720 | -9/Scraptown | Entered Cyclist Reading Room 3872 | -9/Scraptown | Visited Scrap Suit Storage 3882 | -9/Scraptown | Found Scrap Suit 3922 | -9/Scraptown | Visited Derelict Rescue Squad 4103 | -9/Scraptown | Visited Science Guys 4228 | -9/Scraptown | Visited Curators Association 4591 | -9/Scraptown | Visited Scrapoid Research Area 4652 | -9/Scraptown | Visited Supply Room 4718 | -9/Scraptown | Visited Supply Room 4794 | -9/Scraptown | Visited Chapter 10 5507 | -9/Scraptown | Discovered new exit (range 3) 5576 | -9/Scraptown | Visited Abandonware Association 5605 | -9/Scraptown | Learned abandonware demo "OVRCLOCK.EXE" 5723 | -9/Scraptown | Met Optimus 5723 | -9/Scraptown | Accepted into 0bPrime 5835 | -9/Scraptown | Entered Factory 5835 | -6/Factory | Evolved 8 slots: Propulsion x3, Utility x4, Weapon x1 5952 | -6/Factory | Destroyed 7 combat bots 6331 | -6/Factory | Garrison activated, responded to threat 6475 | -6/Factory | Cargo convoy interrupted 6493 | -6/Factory | Core integrity fell below 50% 6510 | -6/Factory | Lost 12 parts (1p4n4u3w) 6512 | -6/Factory | Core integrity fell below 20% 6540 | -6/Factory | Destroyed by P-60 Hacker with Shock Rifle Last Messages --------------- U-05 Engineer lays Concrete. K-01 Serf collects debris. Acquired Cesium-ion Thruster. Chain reaction triggered in Lgt. Nuclear Core. S-27 Virus destroyed. U-05 Engineer lays Concrete. Acquired 11 matter. Connecting with DSF Access... System corrupted: Heat flow error (+254). Penetrated by Slug. Critical hit (Destroy). Cesium-ion Thruster destroyed. Acquired Thermal Shield. Slammed into P-60 Hacker. System corrupted: Matter fused (-9). Slammed into P-60 Hacker. Thermal Shield broken. Destabilizing: Short circuit. [Achievement: This Is Interesting...] [Achievement: Just Browsing] Map ----- +----------------------------------------------------+ | ?????????????????????????????????????????????????? | | ?????????????????????????????????????????????????? | | ?????????????????????????????????????????????????? | | ?????????????????????????????????????????????????? | | ?????????????????????????????????????????????????? | | ?????????????????????????????????????????????????? | | ?????????????????????????????????????????????????? | | ?????????????????????????????????????????????????? | | ?????????????????????????????????????????????????? | | ?????????????????????????????????????????????????? | | ?????????????????????????????????????????????????? | | ?????????????????????????????????????????????????? | | ?????????????????????????????????????????????????? | | ?????????????????????????????????????????????????? | | ?????????????????????????????????????????????????? | | ?????????????????????????????????????????????????? | | ?????????????????????????????????????????????????? | | ?????????????????????????????????????????????????? | | ?????????????????????????????????????????????????? | | ?????????????????????????????????????????????????? | | ??????????####???????????????????????????????????? | | ??????????? ???????????????########???????????? | | ????????????? ?????????????# ! #???????????? | | ??????? ?? ????????????# #???????????? | | ??????? ############ """ #???????????? | | ??????? p@ + """ #???????????? | | ??????????????####### p##### """ #???????????? | | ????????????????????# #???# #???????????? | | ???????############?# #???########???????????? | | ???????? ! #?# #??????????????????????? | | ???????? #?# #??????????????????????? | | ??""""""""" ### #??????????????????????? | | # + #??????????????????????? | | #?""""""""" ### ^ #??????????????????????? | | # #?# #??????????????????????? | | # """"""""" #?# #??????????????????????? | | + ### #??????????????????????? | | ! #?""""""""" + +??????????????????????? | | ! !# ### #??????????????????????? | | # """"""""" #?# #??????????????????????? | | #?? #?# #??????????????????????? | | ###########+#### #??????????????????????? | | " #??????????????????????? | | " #??????????????????????? | | " #??????????????????????? | | #??????????????????????? | | #??????????????????????? | | #######"""####### T########??????????????????????? | | ] [ #???####?????????????????????????????? | | #????????????????????????????????????? | +----------------------------------------------------+ Best States ------------- Heat Dissipation 47 Energy Generation 15 Energy Capacity 250 Matter Stores 300 Matter Capacity 300 Sight Range 22 Robot Scan Range 15 Terrain Scan Density 10 Additional Mass Support 9 Resistance: TH 20 Propulsion Shielding 33 Evasion (%) 62 Armor Integrity Analysis 30 Recoil Reduction 2 Item Schematics ----------------- Mak. Hover Unit | -6/Factory | Scanalyzed Robot Schematics ------------------ None Fabricated ------------ Nothing Repaired ---------- Beam Cannon | 53% | -10/Materials Alien Tech Used ----------------- None Achievements -------------- Just Browsing This Is Interesting... Challenges ------------ None Game ------ Seed DroneLayeredCharge Manual? 0 Play Time 01:10:01 Cumulative 32.5 hours Start 2025.10.20 @ 15:49:45 End 2025.10.20 @ 17:24:41 Sessions 1 Manual Loads 0 Difficulty Rogue Special Mode None Game No. 41 Rogue 41 Adventurer 0 Explorer 0 Win Type - Total 0 Types 0/0/0/0/0/0/0/0/0/0 Lore% 28 Gallery% 25 Achievement% 23 Wizard Run 0 Options --------- Layout 1 ASCII 0 Keyboard 0 Movement Numpad Keybinds 0 Fullscreen 1 Font 24/Swanston Map View 50x35 Zoom Use 0% Tactical HUD 0 Map Filters NONE Filters NONE Steam 1 RUN: 149d4d26-e735-42ef-a23b-337c75efaf51